[Event "45th National Sub Junior 2019"]
[Site "Tiruchengode"]
[Date "2019.07.10"]
[Round "2.1"]
[White "Raja Rithvik R"]
[Black "Chauhan Narayan"]
[Result "1/2-1/2"]
[ECO "A30"]
[WhiteElo "2357"]
[BlackElo "1703"]
[Annotator "ChessBase"]
[PlyCount "130"]
[EventDate "2019.07.09"]
[EventCountry "IND"]
[SourceTitle "playchess.com"]
[Source "ChessBase"]
[SourceQuality "1"]
[TimeControl "5400+30"]

1. Nf3 {[%emt 0:00:00]} Nf6 {[%emt 0:00:00]} 2. c4 {[%emt 0:00:00]} e6 {[%emt 0:00:00]} 3. g3 {[%emt 0:00:01]} b6 {[%emt 0:00:29]} 4. Bg2 {[%emt 0:00:06]} Bb7 {[%emt 0:00:16]} 5. O-O {[%emt 0:00:07]} c5 {[%emt 0:00:47]} 6. Nc3 {[%emt 0:00:06]} Be7 {[%emt 0:00:10]} 7. Re1 {[%emt 0:00:09]} O-O {[%emt 0:01:52]} 8. e4 {[%emt 0:00:04]} d6 {[%emt 0:00:11]} 9. d4 {[%emt 0:00:04]} cxd4 {[%emt 0:00:20]} 10. Nxd4 {[%emt 0:00:04]} a6 {[%emt 0:00:16]} 11. e5 {[%emt 0:02:59]} dxe5 {[%emt 0:02:56]} 12. Bxb7 {[%emt 0:00:15]} Ra7 {[%emt 0:00:03]} 13. Nc6 {[%emt 0:01:54]} Qxd1 {[%emt 0:01:04]} 14. Nxe7+ {[%emt 0:00:03]} Kh8 {[%emt 0:00:08]} 15. Rxd1 {[%emt 0:00:03]} Rxb7 {[%emt 0:00:06]} 16. b3 {[%emt 0:00:02]} b5 {[%emt 0:22:49]} 17. cxb5 {[%emt 0:07:05]} axb5 {[%emt 0:00:24]} 18. Be3 {[%emt 0:00:20]} Re8 {[%emt 0:06:16]} 19. Bc5 {[%emt 0:01:56]} b4 {[%emt 0:00:06]} 20. Na4 {[%emt 0:01:14]} Ne4 {[%emt 0:00:41]} 21. Rac1 {[%emt 0:01:09]} Nxc5 {[%emt 0:00:13]} 22. Rxc5 {[%emt 0:00:05]} Rbxe7 {[%emt 0:00:41]} 23. Rxe5 {[%emt 0:00:05]} Rb7 {[%emt 0:13:42]} 24. Nc5 {[%emt 0:11:01]} Rb5 {[%emt 0:01:55]} 25. Rd6 {[%emt 0:03:33]} Ra5 {[%emt 0:10:33]} 26. Nd3 {[%emt 0:02:12]} Rxa2 {[%emt 0:00:25]} 27. Rb5 {[%emt 0:05:24]} g6 {[%emt 0:05:16]} 28. Nxb4 {[%emt 0:05:47]} Ra7 {[%emt 0:06:10]} 29. Nd3 {[%emt 0:03:46]} Kg7 {[%emt 0:01:51]} 30. b4 {[%emt 0:07:58]} Nd7 {[%emt 0:04:35]} 31. Ra5 {[%emt 0:02:03]} Rb7 {[%emt 0:00:37]} 32. Rd4 {[%emt 0:05:24]} e5 {[%emt 0:03:06]} 33. Re4 {[%emt 0:05:41]} Rc8 {[%emt 0:05:23]} 34. b5 {[%emt 0:01:54]} f5 {[%emt 0:03:52]} 35. Rea4 {[%emt 0:05:07]} Rc3 {[%emt 0:01:53]} 36. Ra3 {[%emt 0:06:19]} Rxa3 {[%emt 0:00:59]} 37. Rxa3 {[%emt 0:00:04]} Rxb5 {[%emt 0:00:06]} 38. Ra7 {[%emt 0:00:04]} Rd5 {[%emt 0:00:09]} 39. Nxe5 {[%emt 0:00:09]} Rxe5 {[%emt 0:00:06]} 40. Rxd7+ {[%emt 0:00:02]} Kh6 {[%emt 0:02:46]} 41. h4 {[%emt 0:00:02]} Re8 {[%emt 0:02:20]} 42. Kg2 {[%emt 0:00:17]} Rh8 {[%emt 0:00:50]} 43. Kf3 {[%emt 0:00:37]} g5 {[%emt 0:01:02]} 44. Rd6+ {[%emt 0:03:24]} Kh5 {[%emt 0:00:52]} 45. hxg5 {[%emt 0:00:09]} Kxg5 {[%emt 0:00:20]} 46. Kg2 {[%emt 0:00:07]} Rg8 {[%emt 0:01:07]} 47. f4+ {[%emt 0:00:20]} Kh5 {[%emt 0:02:05]} 48. Rf6 {[%emt 0:00:41]} Rg6 {[%emt 0:00:37]} 49. Rf7 {[%emt 0:00:42]} h6 {[%emt 0:01:19]} 50. Kh3 {[%emt 0:01:01]} Rf6 {[%emt 0:00:13]} 51. Rg7 {[%emt 0:00:26]} Re6 {[%emt 0:00:38]} 52. Rb7 {[%emt 0:01:15]} Kg6 {[%emt 0:00:14]} 53. Kh4 {[%emt 0:00:16]} Rd6 {[%emt 0:00:19]} 54. Rb5 {[%emt 0:00:13]} Rd1 {[%emt 0:00:41]} 55. Rb6+ {[%emt 0:00:06]} Kg7 {[%emt 0:00:05]} 56. Kh3 {[%emt 0:00:13]} Rd2 {[%emt 0:00:16]} 57. g4 {[%emt 0:00:21]} Rd3+ {[%emt 0:00:32]} 58. Kh4 {[%emt 0:00:02]} Rd4 {[%emt 0:00:17]} 59. Rb7+ {[%emt 0:00:35]} Kf6 {[%emt 0:00:35]} 60. Rb6+ {[%emt 0:00:49]} Kg7 {[%emt 0:00:05]} 61. Rb5 {[%emt 0:01:01]} Rxf4 {[%emt 0:00:19]} 62. Rxf5 {[%emt 0:00:04]} Rxf5 {[%emt 0:00:12]} 63. gxf5 {[%emt 0:00:03]} Kf6 {[%emt 0:00:06]} 64. Kh5 {[%emt 0:00:03]} Kxf5 {[%emt 0:00:04]} 65. Kxh6 {[%emt 0:00:03]} Ke5 {[%emt 0:04:10]} 1/2-1/2

[Event "45th National Sub Junior 2019"]
[Site "Tiruchengode"]
[Date "2019.07.10"]
[Round "2.2"]
[White "Soumyajit Das"]
[Black "Pranesh M"]
[Result "0-1"]
[ECO "C77"]
[WhiteElo "1708"]
[BlackElo "2343"]
[Annotator "NA"]
[PlyCount "118"]
[EventDate "2019.07.09"]
[EventCountry "IND"]
[SourceTitle "playchess.com"]
[Source "ChessBase"]
[SourceQuality "1"]
[TimeControl "5400+30"]

1. e4 {[%emt 0:00:00]} e5 {[%emt 0:00:00]} 2. Nf3 {[%emt 0:00:00]} Nc6 {[%emt 0:00:00]} 3. Bb5 {[%emt 0:00:00]} a6 {[%emt 0:00:00]} 4. Ba4 {[%emt 0:00:00]} Nf6 {[%emt 0:00:00]} 5. Qe2 {[%emt 0:00:00]} b5 {[%emt 0:01:00]} 6. Bb3 {[%emt 0:00:05]} Bc5 {[%emt 0:00:44]} 7. c3 {[%emt 0:00:13]} O-O {[%emt 0:00:37]} 8. O-O {[%emt 0:00:20]} Bb7 {[%emt 0:03:29]} 9. a4 {[%emt 0:05:44]} b4 {[%emt 0:01:52]} 10. a5 {[%emt 0:02:50]} h6 {[%emt 0:12:27]} 11. d3 {[%emt 0:03:35]} d6 {[%emt 0:06:05]} 12. Be3 {[%emt 0:04:53]} Bxe3 {[%emt 0:02:21]} 13. fxe3 {[%emt 0:01:23]} d5 {[%emt 0:01:07]} 14. Nbd2 {[%emt 0:01:10]} Rb8 {[%emt 0:06:48]} 15. exd5 {[%emt 0:15:34]} Nxd5 {[%emt 0:00:10]} 16. Ne4 {[%emt 0:00:52]} bxc3 {[%emt 0:11:57]} 17. bxc3 {[%emt 0:01:54]} Bc8 {[%emt 0:01:44]} 18. Bc4 {[%emt 0:03:34]} Bg4 {[%emt 0:03:58]} 19. h3 {[%emt 0:15:30]} Bh5 {[%emt 0:01:45]} 20. Bxa6 {[%emt 0:09:53]} f5 {[%emt 0:02:43]} 21. Bc4 {[%emt 0:00:33]} Bf7 {[%emt 0:04:05]} 22. Ng3 {[%emt 0:03:07]} f4 {[%emt 0:04:28]} 23. exf4 {[%emt 0:01:13]} exf4 {[%emt 0:00:17]} 24. Ne4 {[%emt 0:00:53]} Kh8 {[%emt 0:01:21]} 25. Rfc1 {[%emt 0:03:03]} Bh5 {[%emt 0:01:47]} 26. Bxd5 {[%emt 0:01:31]} Qxd5 {[%emt 0:00:05]} 27. a6 {[%emt 0:01:59]} Ne5 {[%emt 0:01:20]} 28. Kh2 {[%emt 0:04:42]} Rfe8 {[%emt 0:04:38]} 29. c4 {[%emt 0:03:00]} Bxf3 {[%emt 0:03:06]} 30. gxf3 {[%emt 0:00:26]} Qd4 {[%emt 0:00:09]} 31. Ra2 {[%emt 0:00:27]} Rb3 {[%emt 0:00:47]} 32. a7 {[%emt 0:03:18]} Ra8 {[%emt 0:00:17]} 33. Qf2 {[%emt 0:00:24]} Qxd3 {[%emt 0:01:58]} 34. Nc5 {[%emt 0:00:42]} Nxf3+ {[%emt 0:00:21]} 35. Kg2 {[%emt 0:00:33]} Ne1+ {[%emt 0:04:52]} 36. Kg1 {[%emt 0:08:33]} Qxh3 {[%emt 0:01:17]} 37. Rxe1 {[%emt 0:03:22]} Rg3+ {[%emt 0:00:05]} 38. Qxg3 {[%emt 0:00:27]} Qxg3+ {[%emt 0:00:03]} 39. Kf1 {[%emt 0:00:12]} Qh3+ {[%emt 0:00:14]} 40. Kg1 {[%emt 0:00:17]} Qg4+ {[%emt 0:01:19]} 41. Kf1 {[%emt 0:00:28]} Qh5 {[%emt 0:00:17]} 42. Ra5 {[%emt 0:01:32]} f3 {[%emt 0:00:44]} 43. Re4 {[%emt 0:01:22]} Qh1+ {[%emt 0:00:15]} 44. Kf2 {[%emt 0:00:05]} Qg2+ {[%emt 0:00:06]} 45. Ke3 {[%emt 0:00:08]} Qe2+ {[%emt 0:00:11]} 46. Kd4 {[%emt 0:00:14]} Qd2+ {[%emt 0:00:05]} 47. Ke5 {[%emt 0:00:08]} Qxa5 {[%emt 0:00:07]} 48. Kd4 {[%emt 0:00:41]} Qxa7 {[%emt 0:00:06]} 49. Re5 {[%emt 0:00:09]} f2 {[%emt 0:00:10]} 50. Rf5 {[%emt 0:00:07]} Qa1+ {[%emt 0:00:05]} 51. Kd5 {[%emt 0:00:08]} f1=Q {[%emt 0:22:08]} 52. Rxf1 {[%emt 0:00:04]} Qxf1 {[%emt 0:00:00]} 53. Ne6 {[%emt 0:00:05]} Qf5+ {[%emt 0:00:00]} 54. Kd4 {[%emt 0:00:04]} Qxe6 {[%emt 0:00:00]} 55. c5 {[%emt 0:00:03]} Ra4+ {[%emt 0:00:00]} 56. Kc3 {[%emt 0:00:04]} Qe3+ {[%emt 0:00:00]} 57. Kb2 {[%emt 0:00:05]} Rh4 {[%emt 0:00:00]} 58. c6 {[%emt 0:00:04]} Rh2+ {[%emt 0:00:00]} 59. Kb1 {[%emt 0:00:05]} Qg1# {[%emt 0:00:00]} 0-1

[Event "45th National Sub Junior 2019"]
[Site "Tiruchengode"]
[Date "2019.07.10"]
[Round "2.3"]
[White "Rohith Krishna S"]
[Black "Ruban Sanjai M"]
[Result "1-0"]
[ECO "E65"]
[WhiteElo "2312"]
[BlackElo "1698"]
[Annotator "NA"]
[PlyCount "119"]
[EventDate "2019.07.09"]
[EventCountry "IND"]
[SourceTitle "playchess.com"]
[Source "ChessBase"]
[SourceQuality "1"]
[TimeControl "5400+30"]

1. Nf3 {[%emt 0:00:00]} Nf6 {[%emt 0:01:18]} 2. g3 {[%emt 0:00:04]} g6 {[%emt 0:01:53]} 3. Bg2 {[%emt 0:00:08]} Bg7 {[%emt 0:00:02]} 4. O-O {[%emt 0:00:09]} O-O {[%emt 0:00:09]} 5. d4 {[%emt 0:00:02]} d6 {[%emt 0:02:11]} 6. c4 {[%emt 0:01:27]} Nbd7 {[%emt 0:03:35]} 7. Nc3 {[%emt 0:03:55]} c5 {[%emt 0:02:37]} 8. b3 {[%emt 0:04:35]} Rb8 {[%emt 0:10:02]} 9. Bb2 {[%emt 0:04:08]} b6 {[%emt 0:12:06]} 10. Qc2 {[%emt 0:06:56]} Bb7 {[%emt 0:03:38]} 11. d5 {[%emt 0:05:04]} a6 {[%emt 0:03:24]} 12. e4 {[%emt 0:08:59]} Ne8 {[%emt 0:14:20]} 13. Nd1 {[%emt 0:02:52]} b5 {[%emt 0:11:03]} 14. Bxg7 {[%emt 0:01:07]} Nxg7 {[%emt 0:01:30]} 15. Nb2 {[%emt 0:01:42]} Qc7 {[%emt 0:10:57]} 16. Rfe1 {[%emt 0:01:51]} e5 {[%emt 0:03:43]} 17. dxe6 {[%emt 0:01:40]} Nxe6 {[%emt 0:00:14]} 18. Rad1 {[%emt 0:08:44]} Ne5 {[%emt 0:00:40]} 19. Nh4 {[%emt 0:08:00]} Nd4 {[%emt 0:01:25]} 20. Qd2 {[%emt 0:00:33]} Rbe8 {[%emt 0:02:55]} 21. f4 {[%emt 0:00:46]} Nd7 {[%emt 0:01:03]} 22. Nf3 {[%emt 0:01:57]} Nxf3+ {[%emt 0:04:59]} 23. Bxf3 {[%emt 0:00:11]} Nf6 {[%emt 0:00:41]} 24. Qxd6 {[%emt 0:00:24]} Qxd6 {[%emt 0:01:00]} 25. Rxd6 {[%emt 0:00:09]} Nxe4 {[%emt 0:01:14]} 26. Bxe4 {[%emt 0:01:08]} Rxe4 {[%emt 0:01:47]} 27. Rxe4 {[%emt 0:00:12]} Bxe4 {[%emt 0:00:18]} 28. Rxa6 {[%emt 0:00:04]} bxc4 {[%emt 0:01:51]} 29. Nxc4 {[%emt 0:00:20]} Bd3 {[%emt 0:00:16]} 30. Ra4 {[%emt 0:01:24]} Bxc4 {[%emt 0:00:31]} 31. Rxc4 {[%emt 0:00:06]} Ra8 {[%emt 0:00:07]} 32. Rc2 {[%emt 0:00:16]} Kf8 {[%emt 0:00:50]} 33. Re2 {[%emt 0:00:19]} Ra3 {[%emt 0:01:15]} 34. Rc2 {[%emt 0:02:07]} Ke7 {[%emt 0:00:12]} 35. Kf2 {[%emt 0:00:08]} Kd6 {[%emt 0:00:16]} 36. Ke2 {[%emt 0:00:05]} Kd5 {[%emt 0:00:48]} 37. Kd2 {[%emt 0:00:24]} f5 {[%emt 0:02:19]} 38. Kc3 {[%emt 0:00:38]} Ra7 {[%emt 0:00:30]} 39. Rd2+ {[%emt 0:00:09]} Kc6 {[%emt 0:00:07]} 40. Re2 {[%emt 0:00:08]} Rd7 {[%emt 0:00:42]} 41. a4 {[%emt 0:00:32]} Rd1 {[%emt 0:01:04]} 42. Re7 {[%emt 0:01:00]} Rc1+ {[%emt 0:00:34]} 43. Kb2 {[%emt 0:00:07]} Rf1 {[%emt 0:00:19]} 44. Rxh7 {[%emt 0:00:07]} c4 {[%emt 0:00:36]} 45. bxc4 {[%emt 0:08:32]} Kc5 {[%emt 0:00:22]} 46. a5 {[%emt 0:00:27]} Kb4 {[%emt 0:00:53]} 47. a6 {[%emt 0:00:23]} Rf2+ {[%emt 0:00:06]} 48. Kb1 {[%emt 0:00:40]} Kc3 {[%emt 0:00:58]} 49. a7 {[%emt 0:00:55]} Rf1+ {[%emt 0:00:29]} 50. Ka2 {[%emt 0:00:04]} Rf2+ {[%emt 0:00:22]} 51. Ka3 {[%emt 0:00:06]} Rf1 {[%emt 0:00:18]} 52. Ka4 {[%emt 0:00:05]} Kxc4 {[%emt 0:00:17]} 53. Rc7+ {[%emt 0:00:04]} Kd4 {[%emt 0:00:20]} 54. Kb5 {[%emt 0:00:12]} Ra1 {[%emt 0:00:06]} 55. Kb6 {[%emt 0:00:05]} Rb1+ {[%emt 0:00:37]} 56. Kc6 {[%emt 0:00:09]} Rc1+ {[%emt 0:00:39]} 57. Kb7 {[%emt 0:00:06]} Rb1+ {[%emt 0:00:08]} 58. Kc8 {[%emt 0:00:05]} Ra1 {[%emt 0:00:16]} 59. Kb8 {[%emt 0:00:08]} Rb1+ {[%emt 0:00:11]} 60. Rb7 {[%emt 0:00:06]} 1-0

[Event "45th National Sub Junior 2019"]
[Site "Tiruchengode"]
[Date "2019.07.10"]
[Round "2.4"]
[White "Adireddy Arjun"]
[Black "Pranav Vijay"]
[Result "0-1"]
[ECO "C55"]
[WhiteElo "1702"]
[BlackElo "2265"]
[Annotator "NA"]
[PlyCount "94"]
[EventDate "2019.07.09"]
[EventCountry "IND"]
[SourceTitle "playchess.com"]
[Source "ChessBase"]
[SourceQuality "1"]
[TimeControl "5400+30"]

1. e4 {[%emt 0:00:00]} e5 {[%emt 0:00:00]} 2. Nf3 {[%emt 0:00:00]} Nc6 {[%emt 0:00:00]} 3. Bc4 {[%emt 0:00:05]} Nf6 {[%emt 0:00:00]} 4. d3 {[%emt 0:00:09]} Be7 {[%emt 0:00:08]} 5. c3 {[%emt 0:00:46]} O-O {[%emt 0:02:21]} 6. Bb3 {[%emt 0:00:17]} d5 {[%emt 0:02:51]} 7. Qe2 {[%emt 0:00:28]} d4 {[%emt 0:02:14]} 8. O-O {[%emt 0:01:27]} b5 {[%emt 0:03:52]} 9. a3 {[%emt 0:04:48]} Rb8 {[%emt 0:02:11]} 10. Ne1 {[%emt 0:02:04]} Bg4 {[%emt 0:01:18]} 11. f3 {[%emt 0:00:28]} Be6 {[%emt 0:00:17]} 12. Bxe6 {[%emt 0:03:13]} fxe6 {[%emt 0:00:05]} 13. f4 {[%emt 0:00:12]} exf4 {[%emt 0:03:50]} 14. Bxf4 {[%emt 0:00:27]} e5 {[%emt 0:00:50]} 15. Bg3 {[%emt 0:02:12]} Qe8 {[%emt 0:02:45]} 16. Bh4 {[%emt 0:03:41]} Bc5 {[%emt 0:02:48]} 17. Kh1 {[%emt 0:01:01]} Qh5 {[%emt 0:01:39]} 18. Qxh5 {[%emt 0:00:57]} Nxh5 {[%emt 0:00:07]} 19. Rxf8+ {[%emt 0:00:24]} Rxf8 {[%emt 0:01:11]} 20. Nd2 {[%emt 0:00:23]} dxc3 {[%emt 0:02:46]} 21. bxc3 {[%emt 0:00:24]} Bf2 {[%emt 0:01:31]} 22. Bxf2 {[%emt 0:02:06]} Rxf2 {[%emt 0:00:02]} 23. Rd1 {[%emt 0:00:01]} Rf6 {[%emt 0:05:39]} 24. Ndf3 {[%emt 0:02:10]} g5 {[%emt 0:02:06]} 25. Kg1 {[%emt 0:03:00]} Nf4 {[%emt 0:02:57]} 26. Rd2 {[%emt 0:00:22]} g4 {[%emt 0:00:22]} 27. Nh4 {[%emt 0:01:20]} Ne7 {[%emt 0:00:23]} 28. g3 {[%emt 0:03:26]} Nh3+ {[%emt 0:01:07]} 29. Kg2 {[%emt 0:00:07]} c5 {[%emt 0:00:22]} 30. Nc2 {[%emt 0:01:06]} Ra6 {[%emt 0:04:34]} 31. Rd1 {[%emt 0:12:49]} h5 {[%emt 0:03:24]} 32. Rb1 {[%emt 0:01:41]} Rd6 {[%emt 0:02:24]} 33. Rd1 {[%emt 0:00:20]} Ng5 {[%emt 0:01:25]} 34. Kf2 {[%emt 0:02:01]} Nxe4+ {[%emt 0:00:35]} 35. Ke3 {[%emt 0:00:24]} Nxc3 {[%emt 0:00:23]} 36. Rf1 {[%emt 0:00:25]} c4 {[%emt 0:00:24]} 37. dxc4 {[%emt 0:00:31]} bxc4 {[%emt 0:00:03]} 38. Ne1 {[%emt 0:00:39]} Rd1 {[%emt 0:00:29]} 39. Nf5 {[%emt 0:00:26]} Ned5+ {[%emt 0:00:45]} 40. Kf2 {[%emt 0:00:07]} Ne4+ {[%emt 0:00:15]} 41. Kg2 {[%emt 0:00:23]} c3 {[%emt 0:00:16]} 42. a4 {[%emt 0:00:24]} c2 {[%emt 0:00:16]} 43. Nxc2 {[%emt 0:00:08]} Rd2+ {[%emt 0:00:04]} 44. Kg1 {[%emt 0:00:09]} Rxc2 {[%emt 0:00:06]} 45. Nh6+ {[%emt 0:00:08]} Kh7 {[%emt 0:00:05]} 46. Nf7 {[%emt 0:00:04]} Ne3 {[%emt 0:00:08]} 47. Re1 {[%emt 0:00:07]} Rg2+ {[%emt 0:00:03]} 0-1

[Event "45th National Sub Junior 2019"]
[Site "Tiruchengode"]
[Date "2019.07.10"]
[Round "2.5"]
[White "Samant Aditya S"]
[Black "Tanishq Gupta"]
[Result "1-0"]
[ECO "C10"]
[WhiteElo "2296"]
[BlackElo "1672"]
[Annotator "NA"]
[PlyCount "129"]
[EventDate "2019.07.09"]
[EventCountry "IND"]
[SourceTitle "playchess.com"]
[Source "ChessBase"]
[SourceQuality "1"]
[TimeControl "5400+30"]

1. e4 {[%emt 0:00:00]} e6 {[%emt 0:00:00]} 2. d4 {[%emt 0:00:00]} d5 {[%emt 0:00:01]} 3. Nd2 {[%emt 0:00:00]} dxe4 {[%emt 0:00:40]} 4. Nxe4 {[%emt 0:00:00]} Bd7 {[%emt 0:00:40]} 5. Nf3 {[%emt 0:00:01]} Bc6 {[%emt 0:00:15]} 6. Bd3 {[%emt 0:00:28]} Nd7 {[%emt 0:00:39]} 7. O-O {[%emt 0:00:22]} Ngf6 {[%emt 0:00:18]} 8. Qe2 {[%emt 0:03:29]} Nxe4 {[%emt 0:00:57]} 9. Bxe4 {[%emt 0:00:06]} Bxe4 {[%emt 0:00:05]} 10. Qxe4 {[%emt 0:00:10]} c6 {[%emt 0:00:06]} 11. Bf4 {[%emt 0:01:19]} Nf6 {[%emt 0:01:47]} 12. Qe2 {[%emt 0:00:29]} Bd6 {[%emt 0:02:43]} 13. Be5 {[%emt 0:00:38]} O-O {[%emt 0:01:20]} 14. Rfd1 {[%emt 0:01:40]} b5 {[%emt 0:04:52]} 15. a4 {[%emt 0:01:41]} b4 {[%emt 0:02:53]} 16. a5 Nd5 {[%emt 0:14:46]} 17. Qc4 {[%emt 0:21:26]} Rc8 {[%emt 0:05:38]} 18. Nd2 {[%emt 0:11:00]} Bxe5 {[%emt 0:15:34]} 19. dxe5 {[%emt 0:00:10]} Qg5 {[%emt 0:01:47]} 20. Nf3 {[%emt 0:00:24]} Qe7 {[%emt 0:08:15]} 21. Nd4 {[%emt 0:05:28]} Rfd8 {[%emt 0:06:50]} 22. Rd3 {[%emt 0:09:30]} Qc7 {[%emt 0:05:45]} 23. Nf3 {[%emt 0:02:17]} a6 {[%emt 0:03:47]} 24. Qe4 {[%emt 0:04:41]} Qe7 {[%emt 0:10:17]} 25. Nd2 {[%emt 0:03:13]} Qg5 {[%emt 0:03:37]} 26. Nc4 {[%emt 0:03:24]} Qf4 {[%emt 0:02:14]} 27. Re1 {[%emt 0:03:00]} Qxe4 {[%emt 0:01:22]} 28. Rxe4 {[%emt 0:00:17]} h6 {[%emt 0:04:45]} 29. Kf1 {[%emt 0:01:15]} Kf8 {[%emt 0:01:07]} 30. h4 {[%emt 0:07:46]} h5 {[%emt 0:00:45]} 31. Rf3 {[%emt 0:01:23]} Rc7 {[%emt 0:00:28]} 32. Ke2 {[%emt 0:03:14]} Ke7 {[%emt 0:00:56]} 33. Rg3 {[%emt 0:00:49]} g6 {[%emt 0:00:18]} 34. Rd3 {[%emt 0:00:43]} c5 {[%emt 0:00:44]} 35. g3 {[%emt 0:01:43]} Rc6 {[%emt 0:00:36]} 36. f3 {[%emt 0:06:51]} Rh8 {[%emt 0:00:34]} 37. Nd2 {[%emt 0:01:34]} Rb8 {[%emt 0:00:22]} 38. Rc4 {[%emt 0:00:48]} Rb5 {[%emt 0:00:29]} 39. Nb3 {[%emt 0:00:06]} Rc7 {[%emt 0:00:36]} 40. g4 {[%emt 0:00:19]} f6 {[%emt 0:00:36]} 41. exf6+ {[%emt 0:01:20]} Kxf6 {[%emt 0:00:12]} 42. Rd1 {[%emt 0:00:48]} Ke5 {[%emt 0:00:50]} 43. Kf2 {[%emt 0:00:51]} hxg4 {[%emt 0:00:27]} 44. Rxg4 {[%emt 0:04:11]} Kf5 {[%emt 0:00:29]} 45. Rc4 {[%emt 0:02:42]} Kf6 {[%emt 0:00:30]} 46. Re1 {[%emt 0:00:27]} Kf5 {[%emt 0:00:27]} 47. Rce4 {[%emt 0:00:49]} Rc6 {[%emt 0:00:22]} 48. Rg1 {[%emt 0:00:30]} Kf6 {[%emt 0:00:39]} 49. Rg5 {[%emt 0:00:31]} Ne7 {[%emt 0:00:34]} 50. Reg4 {[%emt 0:00:35]} e5 {[%emt 0:00:22]} 51. h5 {[%emt 0:00:25]} gxh5 {[%emt 0:00:05]} 52. Rxh5 {[%emt 0:00:06]} Ng6 {[%emt 0:00:59]} 53. Rc4 {[%emt 0:00:54]} Ke6 {[%emt 0:00:33]} 54. Rh6 {[%emt 0:00:27]} Kf7 {[%emt 0:00:34]} 55. Ke3 {[%emt 0:00:28]} Kg7 {[%emt 0:00:22]} 56. Rh5 {[%emt 0:00:22]} Kf6 {[%emt 0:00:30]} 57. Ke4 {[%emt 0:00:34]} Ke6 {[%emt 0:00:38]} 58. f4 {[%emt 0:00:42]} exf4 {[%emt 0:00:17]} 59. Nd4+ {[%emt 0:00:27]} cxd4 {[%emt 0:00:17]} 60. Rxc6+ {[%emt 0:00:06]} Kd7 {[%emt 0:00:21]} 61. Rxb5 {[%emt 0:00:18]} Kxc6 {[%emt 0:00:30]} 62. Rb6+ {[%emt 0:00:05]} Kc5 {[%emt 0:00:17]} 63. Rxg6 {[%emt 0:00:21]} b3 {[%emt 0:00:09]} 64. cxb3 {[%emt 0:00:08]} Kb4 {[%emt 0:00:02]} 65. Rxa6 {[%emt 0:00:06]} 1-0

[Event "45th National Sub Junior 2019"]
[Site "Tiruchengode"]
[Date "2019.07.10"]
[Round "2.6"]
[White "Bhrigu Suryanarayan"]
[Black "Aaryan Varshney"]
[Result "0-1"]
[ECO "E07"]
[WhiteElo "1691"]
[BlackElo "2284"]
[Annotator "NA"]
[PlyCount "112"]
[EventDate "2019.07.09"]
[EventCountry "IND"]
[SourceTitle "playchess.com"]
[Source "ChessBase"]
[SourceQuality "1"]
[TimeControl "5400+30"]

1. d4 {[%emt 0:00:00]} Nf6 {[%emt 0:00:00]} 2. c4 {[%emt 0:01:07]} e6 {[%emt 0:00:00]} 3. Nf3 {[%emt 0:01:18]} d5 {[%emt 0:00:00]} 4. g3 {[%emt 0:01:32]} Bb4+ {[%emt 0:00:00]} 5. Bd2 {[%emt 0:02:08]} Be7 {[%emt 0:00:09]} 6. Bg2 {[%emt 0:02:33]} O-O {[%emt 0:00:19]} 7. O-O {[%emt 0:03:47]} c6 {[%emt 0:00:23]} 8. cxd5 {[%emt 0:05:55]} exd5 {[%emt 0:00:52]} 9. Nc3 {[%emt 0:02:11]} Nbd7 {[%emt 0:00:55]} 10. Qc2 {[%emt 0:05:04]} Re8 {[%emt 0:00:25]} 11. Bf4 {[%emt 0:08:16]} Nf8 {[%emt 0:00:47]} 12. Rad1 {[%emt 0:02:47]} Ng6 {[%emt 0:03:03]} 13. Bg5 {[%emt 0:08:37]} Ne4 {[%emt 0:15:03]} 14. Nxe4 {[%emt 0:17:43]} dxe4 {[%emt 0:00:03]} 15. Bxe7 {[%emt 0:00:20]} Qxe7 {[%emt 0:00:08]} 16. Nd2 {[%emt 0:09:38]} f5 {[%emt 0:03:19]} 17. e3 {[%emt 0:06:31]} Be6 {[%emt 0:00:22]} 18. f4 {[%emt 0:05:24]} exf3 {[%emt 0:00:15]} 19. Bxf3 {[%emt 0:01:49]} Rad8 {[%emt 0:01:10]} 20. Rde1 {[%emt 0:02:05]} Qg5 {[%emt 0:02:59]} 21. Kh1 {[%emt 0:03:23]} Bf7 {[%emt 0:01:24]} 22. Qc3 {[%emt 0:02:57]} Re7 {[%emt 0:03:12]} 23. Re2 {[%emt 0:02:56]} Rde8 {[%emt 0:01:07]} 24. Rfe1 {[%emt 0:00:38]} h5 {[%emt 0:00:44]} 25. Nc4 {[%emt 0:03:03]} Rd8 {[%emt 0:02:12]} 26. b3 {[%emt 0:00:45]} h4 {[%emt 0:00:31]} 27. Rg2 {[%emt 0:00:29]} Qf6 {[%emt 0:02:03]} 28. Rge2 {[%emt 0:00:32]} c5 {[%emt 0:01:13]} 29. Ne5 {[%emt 0:00:29]} Nxe5 {[%emt 0:02:52]} 30. dxe5 {[%emt 0:00:01]} Rxe5 {[%emt 0:00:10]} 31. Bxb7 {[%emt 0:00:33]} hxg3 {[%emt 0:01:03]} 32. hxg3 {[%emt 0:00:03]} f4 {[%emt 0:00:51]} 33. Kg1 {[%emt 0:01:13]} Rd7 {[%emt 0:09:03]} 34. Bc8 {[%emt 0:00:38]} Rc7 {[%emt 0:01:11]} 35. Bh3 {[%emt 0:00:23]} Rce7 {[%emt 0:00:57]} 36. Rf1 {[%emt 0:00:38]} Qg6 {[%emt 0:00:35]} 37. e4 {[%emt 0:00:28]} Rxe4 {[%emt 0:00:37]} 38. Rxe4 {[%emt 0:00:13]} Rxe4 {[%emt 0:00:28]} 39. Qxc5 {[%emt 0:00:51]} Qxg3+ {[%emt 0:01:04]} 40. Bg2 {[%emt 0:00:01]} Re2 {[%emt 0:01:05]} 41. Qc8+ {[%emt 0:00:30]} Re8 {[%emt 0:01:01]} 42. Qh3 {[%emt 0:00:41]} Qxh3 {[%emt 0:00:16]} 43. Bxh3 {[%emt 0:00:01]} g5 {[%emt 0:00:14]} 44. Rc1 {[%emt 0:00:58]} Re3 {[%emt 0:00:18]} 45. Rc5 {[%emt 0:00:50]} Rxh3 {[%emt 0:01:09]} 46. Rxg5+ {[%emt 0:00:02]} Kf8 {[%emt 0:00:16]} 47. Ra5 {[%emt 0:00:38]} f3 {[%emt 0:00:25]} 48. Rxa7 {[%emt 0:00:31]} Bd5 {[%emt 0:47:47]} 49. Ra5 {[%emt 0:00:47]} Rh1+ {[%emt 0:00:00]} 50. Kf2 {[%emt 0:00:28]} Rh2+ {[%emt 0:00:00]} 51. Kf1 {[%emt 0:00:30]} Be4 {[%emt 0:00:00]} 52. Re5 {[%emt 0:00:33]} Bd3+ {[%emt 0:00:00]} 53. Kg1 {[%emt 0:00:12]} Rxa2 {[%emt 0:00:00]} 54. Re3 {[%emt 0:00:38]} f2+ {[%emt 0:00:00]} 55. Kh2 {[%emt 0:00:10]} f1=Q+ {[%emt 0:00:00]} 56. Kg3 {[%emt 0:00:11]} Rg2+ {[%emt 0:00:00]} 0-1